Cogmind - Beta 15 @@@ ROGUE MODE // 2025.09.07 @ 21:46:54 Player: fartblaster Result: Self-destructed Performance ------------- Evolutions (1) 500 Regions Visited (2) 400 Robots Destroyed (4) 20 Value Destroyed (75) 75 Prototype IDs (0) 0 Alien Tech Used (0) 0 Bonus (0) 0 TOTAL SCORE: 995 Bonus ------- None Cogmind --------- Core Integrity 391/400 Matter 227/300 Energy 265/265 System Corruption 0% Temperature Cool (0) Movement Walking (120) Location -9/Materials Parts ------- > --- POWER (3) -------- Improved Ion Engine > --- PROPULSION (2) --- Aluminum Leg Aluminum Leg > --- UTILITY (2) ------ Small Storage Unit Structural Scanner > --- WEAPON (2) ------- Assault Rifle Light Assault Rifle > --- INVENTORY (8) ---- Ion Engine Light Ion Engine High-capacity Storage Unit Light Armor Plating Welding Torch Peak State ------------ > --- POWER ------------ Ion Engine Light Ion Engine > --- PROPULSION ------- Aluminum Leg Aluminum Leg > --- UTILITY ---------- Small Storage Unit Structural Scanner > --- WEAPON ----------- Assault Rifle Light Assault Rifle > --- INVENTORY -------- Improved Ion Engine High-capacity Storage Unit Light Armor Plating Welding Torch [Rating: 8] Favorites ----------- Power Light Ion Engine Engine Light Ion Engine Propulsion Aluminum Leg Leg Aluminum Leg Utility Small Storage Unit Device Structural Scanner Storage Small Storage Unit Weapon Assault Rifle Energy Gun EM Pulse Gun Ballistic Gun Assault Rifle Build | -11 -10 -9 ------- Run | Yrd Mat Mat Slots Evolved 2 | . . 2 Power 2 | . . 2 Propulsion . | . . . Utility . | . . . Weapon . | . . . Parts Attached 11 | 6 3 2 Power 3 | 1 1 1 Engine 3 | 1 1 1 Core . | . . . Reactor . | . . . Propulsion 2 | 2 . . Treads . | . . . Leg 2 | 2 . . Wheel . | . . . Hover . | . . . Flight . | . . . Utility 3 | 1 1 1 Device 1 | . . 1 Storage 2 | 1 1 . Processor . | . . . Hackware . | . . . Protection . | . . . Artifact . | . . . Weapon 3 | 2 1 . Energy Gun 1 | 1 . . Energy Cannon . | . . . Ballistic Gun 2 | 1 1 . Ballistic Cannon . | . . . Launcher . | . . . Special Weapon . | . . . Impact Weapon . | . . . Slashing Weapon . | . . . Piercing Weapon . | . . . Special Melee Weapon . | . . . Unidentified Prototypes . | . . . Parts Lost . | . . . Power . | . . . Propulsion . | . . . Utility . | . . . Weapon . | . . . Highest Loss Streak . | . . . To Critical Strikes . | . . . Average Backups 1 | . 1 2 Power . | . . 1 Propulsion . | . . . Utility . | . . . Weapon . | . . . Tool/Special . | . . . Unused Backups 2 | . . 2 Power . | . . . Propulsion . | . . . Utility 1 | . . 1 Weapon . | . . . Tool/Special 1 | . . 1 Average Slot Usage (%) 84 | . 91 76 Engine 12 | . 14 10 Leg 25 | . 28 22 Device 1 | . . 3 Storage 19 | . 19 18 Energy Gun 2 | . 4 . Ballistic Gun 22 | . 23 22 Peak Build Rating 8 | 6 7 8 Average Rating 6 | 3 6 7 On Entrance 4 | . 6 7 Naked Turns . | . . . Heaviest Build 51 | 14 51 51 Greatest Support 20 | 20 20 20 Greatest Overweight (x) 2 | . 2 2 Average Overweight (x) . | . . . Largest Inventory Capacity 20 | 8 20 20 Average Capacity 13 | 6 13 15 Most Carried 6 | 2 2 6 Average Carried 1 | . 1 2 Final Capacity 20 | 8 20 8 Final Carried 5 | . 2 5 Class Distribution -------------------- 100% | Mutant Dominant Class ---------------- Mutant | -10/Materials Mutant | -9/Materials Resources | -11 -10 -9 ----------- Run | Yrd Mat Mat Matter Collected 311 | 205 50 56 Remotely . | . . . Salvage Created 106 | . 50 56 Parts 10 | . 6 4 Haulers Intercepted . | . . . Recyclers Shooed . | . . . Parts Field Recycled . | . . . Retrieved Matter . | . . . Parts Self-Destructed . | . . . Prevented . | . . . Kills | -11 -10 -9 ------- Run | Yrd Mat Mat Combat Hostiles Destroyed 4 | . 3 1 Guns 4 | . 3 1 Classes Destroyed 2 | . 1 1 Swarmer 3 | . 3 . Sentry 1 | . . 1 Best Kill Streak 3 | . 3 1 Combat Bots Only 3 | . 3 1 Max Kills in Single Turn 1 | . 1 1 Gunslinging . | . . . Exploded . | . . . Melee . | . . . Uniques/NPCs Destroyed . | . . . Combat | -11 -10 -9 -------- Run | Yrd Mat Mat Hostile Shots Fired 59 | . 23 36 Missed 23 | . 9 14 Hits 36 | . 14 22 Projectile 36 | . 14 22 Damage Taken 355 | . 117 238 Core 35 | . 26 9 Absorbed by Shields . | . . . Core Remaining (%) 94 | 100 89 . Volleys Fired 15 | . 10 5 Largest 2 | . 2 2 Hottest 60 | . 60 40 Shots Fired 30 | . 20 10 Gun 30 | . 20 10 Cannon . | . . . Launcher . | . . . Special . | . . . Kinetic 24 | . 14 10 Thermal . | . . . Explosive . | . . . Electromagnetic 6 | . 6 . Robot Hit Streak 7 | . 7 4 Robot Miss Streak 3 | . 3 2 Penetration Max . | . . . Secondary Targets . | . . . Shots Hit Robots 14 | . 9 5 Core Hits 6 | . 4 2 Critical Kills . | . . . Critical Parts Destroyed . | . . . Critical Strikes . | . . . Melee Attacks . | . . . Impact . | . . . Slashing . | . . . Piercing . | . . . Sneak Attacks . | . . . Combat Hostiles . | . . . Follow-up Attacks . | . . . Damage Inflicted 158 | . 112 46 Guns 158 | . 112 46 Cannons . | . . . Explosions . | . . . Melee . | . . . Ramming . | . . . Kinetic 125 | . 79 46 Thermal . | . . . Explosive . | . . . Electromagnetic 33 | . 33 . Impact . | . . . Slashing . | . . . Piercing . | . . . Highest Corruption . | . . . Average Corruption . | . . . Corruption Purged . | . . . Corruption Blocked . | . . . Overload Shots . | . . . Overflow Damage . | . . . Projectiles . | . . . Explosions . | . . . Melee . | . . . Knockbacks . | . . . Impact . | . . . Kinetic . | . . . Secondary . | . . . Self-Inflicted Damage . | . . . Shots . | . . . Rammed . | . . . Targets Rammed . | . . . Kicked . | . . . Crushed . | . . . Highest Temperature 6 | . . 6 Average Temperature 5 | . . 5 Received Heat Transfer 54 | . . 54 Siege Activations . | . . . Martial Activations . | . . . Shielding Activations . | . . . Robots Disrupted . | . . . Combat Hostiles . | . . . Robots Corrupted . | . . . Combat Hostiles . | . . . Parts Fried . | . . . Impact Corruptions . | . . . Robots Melted . | . . . Combat Hostiles . | . . . Parts Melted . | . . . Heat Transferred . | . . . Parts Sabotaged . | . . . Parts Stolen . | . . . Parts Stripped . | . . . Power Chain Reactions . | . . . Alert | -11 -10 -9 ------- Run | Yrd Mat Mat Maximum Alert Level . | . . . Low Security (%) 100 | 100 100 100 Level 1 . | . . . Level 2 . | . . . Level 3 . | . . . Level 4 . | . . . Level 5 . | . . . High Security . | . . . Max Security . | . . . Peak Influence 60 | . 60 30 Initial . | . . . Average 6 | . 11 2 Influence Increases 100 | . 70 30 Destroy 0b10 Robot/C 80 | . 60 20 Destroy Leader 20 | . 10 10 Influence Decreases 100 | . 70 30 Time Decay 100 | . 70 30 Squads Dispatched 1 | . 1 . Investigation . | . . . Extermination . | . . . Reinforcement 1 | . 1 . Assault . | . . . Garrison . | . . . Intercept . | . . . Searches Triggered . | . . . Construction Impeded . | . . . Haulers Reinforced . | . . . Active Scanning Responses . | . . . Cargo Convoy Interrupts . | . . . Stealth | -11 -10 -9 --------- Run | Yrd Mat Mat Distress Signals 2 | . 1 1 Communications Jammed . | . . . Distress Signals . | . . . Times Spotted 14 | . 5 9 Peak Tracking Total 8 | . 5 8 Tactical Retreats . | . . . Traps | -11 -10 -9 ------- Run | Yrd Mat Mat Traps Triggered . | . . . Indirectly . | . . . Trap Hack Attempts . | . . . Triggered . | . . . Disarmed . | . . . Reprogrammed . | . . . Reused . | . . . Traps Extracted . | . . . Installed . | . . . Triggered . | . . . Machines | -11 -10 -9 ---------- Run | Yrd Mat Mat Machines Disabled . | . . . Max in Single Turn . | . . . Machines Repaired . | . . . Machines Dismantled . | . . . Machines Sabotaged . | . . . Overloaded Fab Kills . | . . . Hacking | -11 -10 -9 --------- Run | Yrd Mat Mat Machines Accessed . | . . . Terminals . | . . . Fabricators . | . . . Repair Stations . | . . . Recycling Units . | . . . Scanalyzers . | . . . Garrison Access . | . . . Total Hacks . | . . . Successful . | . . . Failed . | . . . Catastrophic . | . . . Database Lockouts . | . . . Manual . | . . . Terminals . | . . . Fabricators . | . . . Repair Stations . | . . . Recycling Units . | . . . Scanalyzers . | . . . Garrison Access . | . . . Terminal Hacks . | . . . Fabricator Hacks . | . . . Repair Station Hacks . | . . . Recycling Unit Hacks . | . . . Scanalyzer . | . . . Garrison Access Hacks . | . . . Unauthorized Hacks . | . . . Terminals . | . . . Fabricators . | . . . Repair Stations . | . . . Recycling Units . | . . . Scanalyzers . | . . . Garrison Access . | . . . Data Cores Recovered . | . . . Used . | . . . Hacking Detections . | . . . Full Trace Events . | . . . Feedback Events . | . . . Feedback Blocked . | . . . Robot Schematics Acquired . | . . . Robots Built . | . . . Authchips . | . . . Time . | . . . Total Robot Build Rating . | . . . Part Schematics Acquired . | . . . Parts Built . | . . . Authchips . | . . . Time . | . . . Total Part Build Rating . | . . . Parts Repaired . | . . . Time . | . . . Parts Recycled . | . . . Recycled Matter . | . . . Retrieved Matter . | . . . Retrieved Components . | . . . Parts Scanalyzed . | . . . Part Schematics Acquired . | . . . Parts Damaged . | . . . Bothacking | -11 -10 -9 ------------ Run | Yrd Mat Mat Used RIF Installer . | . . . Robots Hacked . | . . . Non-combat . | . . . Combat . | . . . Robot Hacks Applied . | . . . Relay Couplers Released . | . . . Fabnet Peak Effective % . | . . . Robots Rewired . | . . . Allies Hacked . | . . . Hacks Repelled . | . . . Allies | -11 -10 -9 -------- Run | Yrd Mat Mat Total Allies . | . . . Largest Group . | . . . Highest-Rated Group . | . . . Highest-Rated Ally . | . . . Total Orders . | . . . Ally Attacks . | . . . Total Damage . | . . . Kills . | . . . Allies Corrupted . | . . . Allies Melted . | . . . Intel | -11 -10 -9 ------- Run | Yrd Mat Mat Active Infowar (turns) 110 | . . 110 Structural 110 | . . 110 Robot Analysis Total . | . . . Derelict Logs Recovered . | . . . Drone Launches . | . . . Drone Recoveries . | . . . Exploration | -11 -10 -9 ------------- Run | Yrd Mat Mat Turns Passed 677 | 54 322 301 Spaces Moved 368 | 44 177 147 Core 14 | 14 . . Treads . | . . . Legs 354 | 30 177 147 Wheels . | . . . Hover . | . . . Flight . | . . . Fastest Speed 50 | 50 120 120 Average Speed 164 | 97 161 189 Slowest Speed 260 | 120 260 260 Overloaded Moves . | . . . Propulsion Burnouts . | . . . Robots Hopped . | . . . Potential Cave-ins . | . . . Cave-ins Triggered . | . . . Exploration Rate (%) 15 | 3 31 13 Regions Visited 2 Branch Regions . Pre-discovered Areas . | . . . Known Exits Taken . | . . . Unknown Exits Taken 2 | 1 1 . Scrap Searched . | . . . Spaces Dug . | . . . Terrain Destroyed . | . . . Melee . | . . . Projectile . | . . . AOE . | . . . Terrain Rammed . | . . . Walls Destroyed . | . . . Machines Disabled . | . . . Actions | -11 -10 -9 --------- Run | Yrd Mat Mat Total 410 | 55 195 160 Wait . | . . . Move 366 | 43 176 147 Hop . | . . . Pick Up 13 | 6 4 3 Fast Attach . | . . . Attach 9 | 6 1 2 Detach 2 | . . 2 Swap 4 | . 3 1 Drop 1 | . 1 . Fire 15 | . 10 5 Melee . | . . . Ram . | . . . Kick . | . . . Crush . | . . . Escape Stasis . | . . . Rewire . | . . . Trap . | . . . Miscellaneous . | . . . Route ------- -11/Scrapyard -10/Materials -9/Materials History --------- Turn | Location | Event 6 | -11/Scrapyard | Discovered new exit (range 15) 55 | -11/Scrapyard | Entered Materials 309 | -10/Materials | Build established: Mutant 323 | -10/Materials | Discovered new exit (range 10) 377 | -10/Materials | Entered another Materials area 377 | -9/Materials | Evolved 2 slots: Power x2 678 | -9/Materials | Self-destructed Last Messages --------------- 00419_ U-05 Engineer lays Concrete. 00420_ T-07 Excavator is excavating. 00420_ U-05 Engineer lays Concrete. 00424_ T-07 Excavator is excavating. 00427_ U-05 Engineer lays Concrete. 00429_ T-07 Excavator is excavating. 00431_ U-05 Engineer lays Concrete. 00433_ T-07 Excavator is excavating. 00435_ U-05 Engineer lays Concrete. 00437_ T-07 Excavator is excavating. 00567_ Acquired Structural Scanner. 00613_ Y-45 Defender destroyed. 00615_ K-01 Serf collects debris. 00621_ Acquired 56 matter. 00623_ K-01 Serf collects debris. 00623_ Acquired Lgt. Armor Plating. 00626_ K-01 Serf collects debris. 00627_ Acquired Imp. Ion Engine. 00633_ K-01 Serf collects debris. 00666_ W-16 Scout sends out distress signal. Map ----- +----------------------------------------------------+ | | | | | | | | | | | | | | | | | | | | | | | | | | | | | | | | | | | | | | | ??????????????????????####################???????? | | ??????????????????????## = ##???????? | | ####??????????????????## ##???????? | | ##################### ##???????? | | ##################### ! ##???????? | | + = [ + ##???????? | | ################ # @ ##???????? | | ################ # s ##???????? | | "" #??????## # # ssss ##???????? | | "" #??????## T # # !s s ##???????? | | "" #??????## # #########+######+##???????? | | #??????## / ####### ???????? | | ####??????## #### ##???## ????????????? | | #???????## #### ##???## "" ??????????? | | #???????########### #???## "" + ?????? | | #??????? ####### " # ?????? | | #????????????????## ###### # ?????? | | ?????????### ####### # ?????? | | ####### ????????### ###??## !!! + ?????? | | ????????????????????##+##???## !!! ##?????? | | ????????????????????## ???## !?! ????????? | | ????????????????????????????## ????????????? | | ????????????????????????????## ???????????? | | ????????????????????????????## ###???????????? | | ????????????????????????????## ## ???????????? | | ????????????????????????????# #????????????? | | ?????????????????????????????????????????????????? | | ?????????????????????????????????????????????????? | | ?????????????????????????????????????????????????? | | ?????????????????????????????????????????????????? | | ?????????????????????????????????????????????????? | +----------------------------------------------------+ Best States ------------- Heat Dissipation 28 Energy Generation 12 Energy Capacity 265 Matter Stores 247 Matter Capacity 300 Sight Range 16 Terrain Scan Density 10 Evasion (%) 55 Item Schematics ----------------- None Robot Schematics ------------------ None Fabricated ------------ Nothing Repaired ---------- Nothing Alien Tech Used ----------------- None Achievements -------------- None Challenges ------------ None Game ------ Seed CouplerAntimatterAnalyzer Manual? 0 Play Time 00:11:17 Cumulative 16.7 hours Start 2025.09.07 @ 21:38:42 End 2025.09.07 @ 21:46:54 Sessions 1 Manual Loads 0 Difficulty Rogue Special Mode None Game No. 53 Rogue 53 Adventurer 0 Explorer 0 Win Type - Total 0 Types 0/0/0/0/0/0/0/0/0/0 Lore% 4 Gallery% 15 Achievement% 13 Wizard Run 0 Options --------- Layout 1 ASCII 0 Keyboard 0 Movement Mouse Keybinds 0 Fullscreen 1 Font 24/Smallcaps Map View 50x35 Zoom Use 0% Tactical HUD 1 Map Filters NONE Filters NONE Steam 1 RUN: 50699e83-873c-4dfa-98e6-1c43c49fccc2